[Event "2nd Sparkasse Trophy Harrwitz Memorial"]
[Site "Bolzano"]
[Date "2025.04.26"]
[Round "3.6"]
[White "Olivetti, Davide"]
[Black "Gil, Arthur"]
[Result "1-0"]
[Annotator "RC"]
[ECO "C30"]
[WhiteElo "2224"]
[BlackElo "1937"]
[PlyCount "69"]
[EventDate "2025.04.19"]
[EventType "swiss"]
[EventCountry "ITA"]
[SourceTitle "playchess.com"]
[Source "ChessBase"]
[SourceQuality "1"]
[TimeControl "40/5400+30:900+30"]

1. e4 {[%emt 0:00:20]} e5 {[%emt 0:00:17]} 2. f4 {[%emt 0:00:21]} Nc6 {[%emt 0:00:05]} 3. Nf3 {[%emt 0:00:12]} f5 {[%emt 0:00:03]} 4. d4 {[%emt 0:02:39]} fxe4 {[%emt 0:07:56]} 5. Nxe5 {[%emt 0:00:09]} d6 {[%emt 0:07:18]} 6. Nc4 {[%emt 0:16:48]} Qf6 {[%emt 0:17:48]} 7. Nc3 {[%emt 0:06:41]} Qxd4 {[%emt 0:03:52]} 8. Qe2 {[%emt 0:02:55]} d5 {[%emt 0:11:07]} 9. Qh5+ {[%emt 0:18:08]} g6 {[%emt 0:04:35]} 10. Qxd5 {[%emt 0:00:05]} Nf6 {[%emt 0:00:20]} 11. Qxd4 {[%emt 0:03:00]} Nxd4 {[%emt 0:00:13]} 12. Ne3 {[%emt 0:00:07]} Bf5 {[%emt 0:04:27]} 13. Nb5 {[%emt 0:01:56]} Nxb5 {[%emt 0:04:00]} 14. Bxb5+ {[%emt 0:00:07]} c6 {[%emt 0:00:06]} 15. Be2 {[%emt 0:00:40]} Bc5 {[%emt 0:00:58]} 16. h3 {[%emt 0:01:45]} h5 {[%emt 0:01:38]} 17. Bc4 {[%emt 0:01:48]} Ke7 {[%emt 0:04:39]} 18. c3 {[%emt 0:01:20]} Rad8 {[%emt 0:01:12]} 19. b4 {[%emt 0:00:18]} Bb6 {[%emt 0:01:29]} 20. a4 {[%emt 0:00:22]} Nd5 {[%emt 0:02:50]} 21. Bxd5 {[%emt 0:02:14]} cxd5 {[%emt 0:00:11]} 22. Nc2 {[%emt 0:00:14]} a5 {[%emt 0:03:11]} 23. Rb1 {[%emt 0:02:40]} Rc8 {[%emt 0:05:44]} 24. bxa5 {[%emt 0:00:30]} Bxa5 {[%emt 0:03:38]} 25. Rxb7+ {[%emt 0:00:33]} Kd8 {[%emt 0:01:54]} 26. O-O {[%emt 0:04:02]} Bxc3 {[%emt 0:01:14]} 27. Be3 {[%emt 0:00:28]} Rc4 {[%emt 0:01:56]} 28. Rd1 {[%emt 0:04:56]} Kc8 {[%emt 0:04:55]} 29. Ra7 {[%emt 0:01:31]} Be6 {[%emt 0:01:46]} 30. Nd4 {[%emt 0:04:01]} Bxd4 {[%emt 0:00:37]} 31. Bxd4 {[%emt 0:00:03]} Re8 {[%emt 0:00:20]} 32. Be5 {[%emt 0:00:20]} Rc2 {[%emt 0:02:14]} 33. Rb1 {[%emt 0:00:32]} Kd8 {[%emt 0:00:36]} 34. Rb8+ {[%emt 0:00:27]} Bc8 {[%emt 0:00:07]} 35. Bf6+ {[%emt 0:00:11]} 1-0

[Event "2nd Sparkasse Trophy Harrwitz Memorial"]
[Site "Bolzano"]
[Date "2025.04.26"]
[Round "4.1"]
[White "Hofegger, Jakob"]
[Black "Bodrov, Timofey"]
[Result "1/2-1/2"]
[Annotator "NA"]
[ECO "A21"]
[WhiteElo "2142"]
[BlackElo "2113"]
[PlyCount "44"]
[EventDate "2025.04.19"]
[EventType "swiss"]
[EventCountry "ITA"]
[SourceTitle "playchess.com"]
[Source "ChessBase"]
[SourceQuality "1"]
[TimeControl "40/5400+30:900+30"]

1. Nf3 {[%emt 0:00:03]} g6 {[%emt 0:02:15]} 2. g3 {[%emt 0:00:28]} Bg7 {[%emt 0:00:18]} 3. Bg2 {[%emt 0:00:13]} e5 {[%emt 0:00:38]} 4. d3 {[%emt 0:00:22]} Ne7 {[%emt 0:02:09]} 5. c4 {[%emt 0:00:14]} c6 {[%emt 0:10:00]} 6. Nc3 {[%emt 0:00:21]} d6 {[%emt 0:01:18]} 7. O-O {[%emt 0:00:16]} O-O {[%emt 0:00:32]} 8. Rb1 {[%emt 0:00:36]} f5 {[%emt 0:01:56]} 9. Bd2 {[%emt 0:00:51]} h6 {[%emt 0:01:52]} 10. b4 {[%emt 0:08:48]} Be6 {[%emt 0:00:36]} 11. b5 {[%emt 0:00:29]} Nd7 {[%emt 0:00:17]} 12. Qc2 {[%emt 0:04:52]} g5 {[%emt 0:02:41]} 13. bxc6 {[%emt 0:06:20]} bxc6 {[%emt 0:00:05]} 14. Qa4 {[%emt 0:10:17]} Nc5 {[%emt 0:00:40]} 15. Qa3 {[%emt 0:00:33]} Qd7 {[%emt 0:08:03]} 16. Be3 {[%emt 0:04:16]} e4 {[%emt 0:09:09]} 17. dxe4 {[%emt 0:05:32]} Nxe4 {[%emt 0:04:38]} 18. Nxe4 {[%emt 0:01:27]} fxe4 {[%emt 0:00:04]} 19. Nd2 {[%emt 0:08:32]} d5 {[%emt 0:10:27]} 20. Bc5 {[%emt 0:01:58]} Rf7 {[%emt 0:03:59]} 21. Rfd1 {[%emt 0:03:40]} Qe8 {[%emt 0:01:01]} 22. Qa6 {[%emt 0:07:08]} Nf5 {[%emt 0:05:14]} 1/2-1/2

[Event "2nd Sparkasse Trophy Harrwitz Memorial"]
[Site "Bolzano"]
[Date "2025.04.26"]
[Round "4.2"]
[White "Casadio, Niccolo`"]
[Black "Csontos, Aron"]
[Result "1/2-1/2"]
[Annotator "ChessBase"]
[ECO "C54"]
[WhiteElo "2268"]
[BlackElo "2262"]
[PlyCount "64"]
[EventDate "2025.04.19"]
[EventType "swiss"]
[EventCountry "ITA"]
[SourceTitle "playchess.com"]
[Source "ChessBase"]
[SourceQuality "1"]
[TimeControl "40/5400+30:900+30"]

1. e4 {[%emt 0:00:03]} e5 {[%emt 0:00:04]} 2. Nf3 {[%emt 0:00:05]} Nc6 {[%emt 0:00:04]} 3. Bc4 {[%emt 0:00:11]} Bc5 {[%emt 0:00:06]} 4. O-O {[%emt 0:00:07]} Nf6 {[%emt 0:00:04]} 5. d3 {[%emt 0:00:05]} O-O {[%emt 0:00:07]} 6. c3 {[%emt 0:00:07]} d6 {[%emt 0:00:17]} 7. h3 {[%emt 0:00:10]} a6 {[%emt 0:00:08]} 8. a4 {[%emt 0:00:13]} Ba7 {[%emt 0:00:14]} 9. Nbd2 {[%emt 0:00:31]} Ne7 {[%emt 0:13:34]} 10. Re1 {[%emt 0:00:31]} c6 {[%emt 0:00:06]} 11. Bb3 {[%emt 0:00:10]} Ng6 {[%emt 0:00:28]} 12. Nf1 {[%emt 0:00:26]} Nh5 {[%emt 0:03:17]} 13. d4 {[%emt 0:03:47]} Qc7 {[%emt 0:09:55]} 14. Be3 {[%emt 0:07:19]} Nhf4 {[%emt 0:01:26]} 15. Ng3 {[%emt 0:01:45]} Kh8 {[%emt 0:10:30]} 16. Nf5 {[%emt 0:04:33]} d5 {[%emt 0:05:39]} 17. Nxe5 {[%emt 0:02:06]} dxe4 {[%emt 0:00:44]} 18. Bxf4 {[%emt 0:04:17]} Nxf4 {[%emt 0:00:08]} 19. Qg4 {[%emt 0:00:40]} f6 {[%emt 0:03:38]} 20. Nf7+ {[%emt 0:03:23]} Rxf7 {[%emt 0:00:07]} 21. Bxf7 {[%emt 0:00:08]} g6 {[%emt 0:06:25]} 22. Bxg6 {[%emt 0:13:51]} hxg6 {[%emt 0:00:08]} 23. Rxe4 {[%emt 0:00:37]} Bxf5 {[%emt 0:00:47]} 24. Qxf4 {[%emt 0:00:10]} Qxf4 {[%emt 0:01:05]} 25. Rxf4 {[%emt 0:00:02]} Bb8 {[%emt 0:00:08]} 26. Rf3 {[%emt 0:00:14]} Kg7 {[%emt 0:00:11]} 27. Re3 {[%emt 0:01:20]} Bd6 {[%emt 0:00:32]} 28. Rae1 {[%emt 0:02:53]} Kf7 {[%emt 0:00:12]} 29. a5 {[%emt 0:01:10]} c5 {[%emt 0:07:27]} 30. dxc5 {[%emt 0:00:46]} Bxc5 {[%emt 0:00:07]} 31. R3e2 {[%emt 0:00:02]} Rd8 {[%emt 0:03:53]} 32. b4 {[%emt 0:04:02]} Bd6 {[%emt 0:04:10]} 1/2-1/2

[Event "2nd Sparkasse Trophy Harrwitz Memorial"]
[Site "Bolzano"]
[Date "2025.04.26"]
[Round "4.3"]
[White "Spornberger, Andre"]
[Black "De Vita, Gianni"]
[Result "1-0"]
[Annotator "ChessBase"]
[ECO "D00"]
[WhiteElo "2233"]
[BlackElo "1975"]
[PlyCount "51"]
[EventDate "2025.04.19"]
[EventType "swiss"]
[EventCountry "ITA"]
[SourceTitle "playchess.com"]
[Source "ChessBase"]
[SourceQuality "1"]
[TimeControl "40/5400+30:900+30"]

1. d4 {[%emt 0:00:04]} d5 {[%emt 0:00:10]} 2. Bf4 {[%emt 0:00:06]} c5 {[%emt 0:00:47]} 3. e3 {[%emt 0:00:30]} Nc6 {[%emt 0:00:33]} 4. c3 {[%emt 0:01:03]} Nf6 {[%emt 0:02:38]} 5. Nd2 {[%emt 0:00:41]} h6 {[%emt 0:02:24]} 6. Bd3 {[%emt 1:31:06]} cxd4 {[%emt 0:05:08]} 7. exd4 {[%emt 0:00:00]} g5 {[%emt 0:03:51]} 8. Bg3 {[%emt 0:00:00]} h5 {[%emt 0:03:05]} 9. h4 {[%emt 0:00:00]} g4 {[%emt 0:07:59]} 10. Ne2 {[%emt 0:00:00]} e6 {[%emt 0:05:26]} 11. O-O {[%emt 0:00:00]} Bd6 {[%emt 0:01:51]} 12. Rc1 {[%emt 0:00:00]} e5 {[%emt 0:04:32]} 13. dxe5 {[%emt 0:00:00]} Nxe5 {[%emt 0:00:45]} 14. Bb1 {[%emt 0:00:00]} Ng6 {[%emt 0:15:35]} 15. Nf4 {[%emt 0:00:00]} Nxf4 {[%emt 0:03:38]} 16. Bxf4 {[%emt 0:00:00]} Ne4 {[%emt 0:06:14]} 17. Bxd6 {[%emt 0:00:00]} Nxd6 {[%emt 0:02:02]} 18. Qa4+ {[%emt 0:00:00]} b5 {[%emt 0:12:30]} 19. Qd4 {[%emt 0:00:00]} Rh6 {[%emt 0:05:45]} 20. Qxd5 {[%emt 0:00:00]} Bb7 {[%emt 0:02:47]} 21. Qe5+ {[%emt 0:00:00]} Kf8 {[%emt 0:01:29]} 22. Ne4 {[%emt 0:00:00]} Qe7 {[%emt 0:10:11]} 23. Qf4 {[%emt 0:00:00]} Re6 {[%emt 0:01:00]} 24. Nc5 {[%emt 0:00:00]} Re2 {[%emt 0:01:23]} 25. Bd3 {[%emt 0:00:00]} Rxb2 {[%emt 0:00:41]} 26. Qh6+ {[%emt 0:00:00]} 1-0

[Event "2nd Sparkasse Trophy Harrwitz Memorial"]
[Site "Bolzano"]
[Date "2025.04.26"]
[Round "4.4"]
[White "Bonagura, Stefano"]
[Black "Valente, Luca"]
[Result "1-0"]
[Annotator "ChessBase"]
[ECO "D04"]
[WhiteElo "2199"]
[BlackElo "1885"]
[PlyCount "71"]
[EventDate "2025.04.19"]
[EventType "swiss"]
[EventCountry "ITA"]
[SourceTitle "playchess.com"]
[Source "ChessBase"]
[SourceQuality "1"]
[TimeControl "40/5400+30:900+30"]

1. d4 {[%emt 0:00:06]} Nf6 {[%emt 0:00:06]} 2. Nf3 {[%emt 0:00:07]} d5 {[%emt 0:00:08]} 3. e3 {[%emt 0:00:09]} c6 {[%emt 0:00:08]} 4. Nbd2 {[%emt 0:01:44]} Bg4 {[%emt 0:01:36]} 5. h3 {[%emt 0:00:13]} Bh5 {[%emt 0:00:13]} 6. g4 {[%emt 0:00:13]} Bg6 {[%emt 0:00:07]} 7. Ne5 {[%emt 0:00:27]} Nfd7 {[%emt 0:09:36]} 8. Nxg6 {[%emt 0:01:58]} hxg6 {[%emt 0:00:10]} 9. c4 {[%emt 0:08:26]} e5 {[%emt 0:07:27]} 10. Qb3 {[%emt 0:17:52]} Qb6 {[%emt 0:04:09]} 11. Qxb6 {[%emt 0:17:16]} axb6 {[%emt 0:00:55]} 12. cxd5 {[%emt 0:00:28]} exd4 {[%emt 0:02:10]} 13. exd4 {[%emt 0:01:28]} Nf6 {[%emt 0:09:51]} 14. dxc6 {[%emt 0:11:58]} Nxc6 {[%emt 0:01:14]} 15. Bb5 {[%emt 0:00:10]} O-O-O {[%emt 0:00:44]} 16. Nf3 {[%emt 0:07:30]} Nb4 {[%emt 0:13:31]} 17. Bf4 {[%emt 0:05:00]} Nc6 {[%emt 0:01:37]} 18. Rc1 {[%emt 0:01:51]} Nd5 {[%emt 0:01:13]} 19. Bg3 {[%emt 0:01:53]} Bb4+ {[%emt 0:01:54]} 20. Kf1 {[%emt 0:00:08]} f6 {[%emt 0:00:35]} 21. a3 {[%emt 0:00:31]} Be7 {[%emt 0:01:16]} 22. Kg2 {[%emt 0:01:26]} Kd7 {[%emt 0:00:25]} 23. Bd3 {[%emt 0:02:00]} Bd6 {[%emt 0:03:06]} 24. Bxg6 {[%emt 0:00:56]} Bxg3 {[%emt 0:00:52]} 25. Kxg3 {[%emt 0:00:11]} Nce7 {[%emt 0:01:08]} 26. Be4 {[%emt 0:02:31]} Rc8 {[%emt 0:00:39]} 27. h4 {[%emt 0:00:44]} Kd6 {[%emt 0:02:18]} 28. h5 {[%emt 0:00:27]} Rxc1 {[%emt 0:00:05]} 29. Rxc1 {[%emt 0:00:08]} Rc8 {[%emt 0:00:03]} 30. Rxc8 {[%emt 0:00:22]} Nxc8 {[%emt 0:00:07]} 31. Nh4 {[%emt 0:01:10]} Nce7 {[%emt 0:01:32]} 32. f4 {[%emt 0:01:54]} Nc7 {[%emt 0:02:37]} 33. Bxb7 {[%emt 0:00:59]} Ne6 {[%emt 0:00:15]} 34. Nf3 {[%emt 0:00:17]} Nd5 {[%emt 0:01:19]} 35. Bxd5 {[%emt 0:00:23]} Kxd5 {[%emt 0:00:10]} 36. g5 {[%emt 0:00:20]} 1-0

[Event "2nd Sparkasse Trophy Harrwitz Memorial"]
[Site "Bolzano"]
[Date "2025.04.26"]
[Round "4.5"]
[White "Sbarra, Marco"]
[Black "Olivetti, Davide"]
[Result "1/2-1/2"]
[Annotator "ChessBase"]
[ECO "E93"]
[WhiteElo "2125"]
[BlackElo "2224"]
[PlyCount "57"]
[EventDate "2025.04.19"]
[EventType "swiss"]
[EventCountry "ITA"]
[SourceTitle "playchess.com"]
[Source "ChessBase"]
[SourceQuality "1"]
[TimeControl "40/5400+30:900+30"]

1. d4 {[%emt 0:00:02]} Nf6 {[%emt 0:00:14]} 2. c4 {[%emt 0:00:06]} g6 {[%emt 0:00:10]} 3. Nc3 {[%emt 0:00:10]} Bg7 {[%emt 0:00:09]} 4. e4 {[%emt 0:00:10]} O-O {[%emt 0:00:29]} 5. Be2 {[%emt 0:01:19]} d6 {[%emt 0:00:09]} 6. Nf3 {[%emt 0:00:22]} Nbd7 {[%emt 0:00:40]} 7. h3 {[%emt 0:07:28]} e5 {[%emt 0:00:52]} 8. d5 {[%emt 0:00:05]} Nc5 {[%emt 0:00:23]} 9. Qc2 {[%emt 0:01:25]} a5 {[%emt 0:00:43]} 10. Bg5 {[%emt 0:01:17]} Bd7 {[%emt 0:00:52]} 11. Nd2 {[%emt 0:01:36]} Qe8 {[%emt 0:01:21]} 12. Nb5 {[%emt 0:02:09]} Qb8 {[%emt 0:01:05]} 13. O-O {[%emt 0:01:53]} Ne8 {[%emt 0:04:45]} 14. Be7 {[%emt 0:01:18]} Bh6 {[%emt 0:02:13]} 15. Rfd1 {[%emt 0:03:28]} f5 {[%emt 0:01:59]} 16. Bxf8 {[%emt 0:00:15]} Kxf8 {[%emt 0:00:14]} 17. Nc3 {[%emt 0:01:11]} Nf6 {[%emt 0:00:55]} 18. Bd3 {[%emt 0:02:18]} f4 {[%emt 0:05:19]} 19. Bf1 {[%emt 0:04:52]} g5 {[%emt 0:00:57]} 20. g4 {[%emt 0:05:41]} Kf7 {[%emt 0:00:31]} 21. Nb3 {[%emt 0:01:55]} Bf8 {[%emt 0:00:22]} 22. Nxc5 {[%emt 0:07:10]} dxc5 {[%emt 0:00:46]} 23. Qe2 {[%emt 0:06:49]} Bd6 {[%emt 0:00:50]} 24. Nb5 {[%emt 0:03:03]} Bxb5 {[%emt 0:01:08]} 25. cxb5 {[%emt 0:00:01]} Nd7 {[%emt 0:01:10]} 26. h4 {[%emt 0:02:21]} Qg8 {[%emt 0:04:20]} 27. h5 {[%emt 0:13:23]} Nb6 {[%emt 0:07:14]} 28. Rdc1 {[%emt 0:00:41]} Qf8 {[%emt 0:00:34]} 29. Qc2 {[%emt 0:01:23]} 1/2-1/2

[Event "2nd Sparkasse Trophy Harrwitz Memorial"]
[Site "Bolzano"]
[Date "2025.04.26"]
[Round "4.6"]
[White "Unterweger, Jonas"]
[Black "Di Liberto, Michele"]
[Result "1-0"]
[Annotator "ChessBase"]
[ECO "D02"]
[WhiteElo "2109"]
[BlackElo "2106"]
[PlyCount "87"]
[EventDate "2025.04.19"]
[EventType "swiss"]
[EventCountry "ITA"]
[SourceTitle "playchess.com"]
[Source "ChessBase"]
[SourceQuality "1"]
[TimeControl "40/5400+30:900+30"]

1. d4 {[%emt 0:00:01]} Nf6 {[%emt 0:00:07]} 2. Nf3 {[%emt 0:00:05]} e6 {[%emt 0:00:09]} 3. Bf4 {[%emt 0:00:14]} c5 {[%emt 0:00:46]} 4. e3 {[%emt 0:00:24]} d5 {[%emt 0:01:30]} 5. c3 {[%emt 0:00:11]} Qb6 {[%emt 0:00:36]} 6. Qc2 {[%emt 0:02:23]} Nbd7 {[%emt 0:02:27]} 7. Nbd2 {[%emt 0:01:52]} Bd6 {[%emt 0:00:31]} 8. Bg3 {[%emt 0:01:08]} Qc7 {[%emt 0:02:01]} 9. Bd3 {[%emt 0:03:09]} e5 {[%emt 0:01:37]} 10. dxe5 {[%emt 0:03:04]} Nxe5 {[%emt 0:00:15]} 11. Nxe5 {[%emt 0:00:50]} Bxe5 {[%emt 0:00:07]} 12. Bxe5 {[%emt 0:01:56]} Qxe5 {[%emt 0:00:09]} 13. Nf3 {[%emt 0:02:14]} Qe7 {[%emt 0:02:57]} 14. O-O {[%emt 0:00:35]} O-O {[%emt 0:01:40]} 15. c4 {[%emt 0:00:38]} Be6 {[%emt 0:01:57]} 16. Ng5 {[%emt 0:04:59]} g6 {[%emt 0:02:29]} 17. Nxe6 {[%emt 0:00:33]} fxe6 {[%emt 0:00:29]} 18. cxd5 {[%emt 0:08:58]} exd5 {[%emt 0:00:15]} 19. Rac1 {[%emt 0:00:53]} Rac8 {[%emt 0:07:23]} 20. h3 {[%emt 0:06:14]} a6 {[%emt 0:06:35]} 21. a4 {[%emt 0:01:47]} Rfe8 {[%emt 0:03:49]} 22. Rfd1 {[%emt 0:02:20]} Kg7 {[%emt 0:04:01]} 23. Bf1 {[%emt 0:05:58]} Qe5 {[%emt 0:17:04]} 24. g3 {[%emt 0:08:15]} Qf5 {[%emt 0:15:03]} 25. Bg2 {[%emt 0:17:43]} Qxc2 {[%emt 0:09:37]} 26. Rxc2 {[%emt 0:00:04]} Red8 {[%emt 0:01:10]} 27. g4 {[%emt 0:01:45]} g5 {[%emt 0:01:02]} 28. Rcd2 {[%emt 0:09:01]} Rc7 {[%emt 0:00:46]} 29. a5 {[%emt 0:00:35]} Rcd7 {[%emt 0:01:53]} 30. Rc2 {[%emt 0:00:35]} Rc8 {[%emt 0:01:42]} 31. b3 {[%emt 0:05:03]} h6 {[%emt 0:02:28]} 32. Kh2 {[%emt 0:00:49]} Kf7 {[%emt 0:01:57]} 33. Kg3 {[%emt 0:00:12]} Ke6 {[%emt 0:03:06]} 34. h4 {[%emt 0:00:39]} Rg7 {[%emt 0:02:10]} 35. hxg5 {[%emt 0:01:14]} Rxg5 {[%emt 0:00:14]} 36. Bh3 {[%emt 0:01:07]} Rcg8 {[%emt 0:05:25]} 37. f3 {[%emt 0:05:52]} h5 {[%emt 0:01:38]} 38. f4 {[%emt 0:02:16]} h4+ {[%emt 0:01:34]} 39. Kf3 {[%emt 0:00:39]} Rxg4 {[%emt 0:00:43]} 40. Rg2 {[%emt 0:00:39]} Kf5 {[%emt 0:00:32]} 41. Rdg1 {[%emt 0:15:06]} Re8 {[%emt 0:15:20]} 42. Bxg4+ {[%emt 0:00:10]} Nxg4 {[%emt 0:00:06]} 43. Rxg4 {[%emt 0:00:07]} d4 {[%emt 0:00:04]} 44. e4+ {[%emt 0:00:40]} 1-0

[Event "2nd Sparkasse Trophy Harrwitz Memorial"]
[Site "Bolzano"]
[Date "2025.04.27"]
[Round "5.1"]
[White "Csontos, Aron"]
[Black "Spornberger, Andre"]
[Result "1-0"]
[Annotator "ChessBase"]
[ECO "C05"]
[WhiteElo "2262"]
[BlackElo "2233"]
[PlyCount "87"]
[EventDate "2025.04.19"]
[EventType "swiss"]
[EventCountry "ITA"]
[SourceTitle "playchess.com"]
[Source "ChessBase"]
[SourceQuality "1"]
[TimeControl "40/5400+30:900+30"]

1. e4 {[%emt 0:00:02]} e6 {[%emt 0:00:09]} 2. d4 {[%emt 0:00:04]} d5 {[%emt 0:00:07]} 3. Nd2 {[%emt 0:00:04]} Nf6 {[%emt 0:00:09]} 4. e5 {[%emt 0:00:05]} Nfd7 {[%emt 0:00:06]} 5. c3 {[%emt 0:00:06]} c5 {[%emt 0:00:15]} 6. f4 {[%emt 0:00:04]} cxd4 {[%emt 0:01:10]} 7. cxd4 {[%emt 0:00:06]} Nc6 {[%emt 0:00:05]} 8. Ndf3 {[%emt 0:00:24]} Qb6 {[%emt 0:00:37]} 9. g3 {[%emt 0:01:12]} Bb4+ {[%emt 0:00:22]} 10. Kf2 {[%emt 0:00:15]} g5 {[%emt 0:01:15]} 11. Be3 {[%emt 0:00:59]} f6 {[%emt 0:02:06]} 12. Bh3 {[%emt 0:01:39]} gxf4 {[%emt 0:01:41]} 13. gxf4 {[%emt 0:00:09]} fxe5 {[%emt 0:00:39]} 14. fxe5 {[%emt 0:00:30]} Nf8 {[%emt 0:00:36]} 15. Ne2 {[%emt 0:08:23]} Ng6 {[%emt 0:11:08]} 16. Rc1 {[%emt 0:19:58]} Be7 {[%emt 0:05:28]} 17. Qd2 {[%emt 0:05:19]} Bd7 {[%emt 0:05:53]} 18. Nc3 {[%emt 0:04:28]} Na5 {[%emt 0:05:45]} 19. b3 {[%emt 0:00:16]} Bb4 {[%emt 0:08:13]} 20. Qd3 {[%emt 0:01:29]} Rf8 {[%emt 0:02:14]} 21. Bg4 {[%emt 0:03:56]} Ba3 {[%emt 0:04:40]} 22. Bh5 {[%emt 0:23:22]} Rf5 {[%emt 0:09:25]} 23. Qxf5 {[%emt 0:05:49]} exf5 {[%emt 0:02:54]} 24. Nxd5 {[%emt 0:00:05]} Bxc1 {[%emt 0:02:38]} 25. Rxc1 {[%emt 0:00:05]} Qd8 {[%emt 0:03:52]} 26. Bg5 {[%emt 0:00:07]} Qc8 {[%emt 0:00:16]} 27. Rxc8+ {[%emt 0:03:24]} Rxc8 {[%emt 0:00:56]} 28. Nf6+ {[%emt 0:00:10]} Ke7 {[%emt 0:08:09]} 29. Nxh7+ {[%emt 0:01:24]} Kf7 {[%emt 0:00:35]} 30. e6+ {[%emt 0:02:42]} Bxe6 {[%emt 0:01:14]} 31. Ne5+ {[%emt 0:00:05]} Kg7 {[%emt 0:00:21]} 32. Bxg6 {[%emt 0:00:10]} Nc6 {[%emt 0:02:22]} 33. Bf6+ {[%emt 0:00:40]} Kh6 {[%emt 0:00:32]} 34. Ng5 {[%emt 0:03:07]} Nxe5 {[%emt 0:00:42]} 35. dxe5 {[%emt 0:00:09]} Rc2+ {[%emt 0:04:50]} 36. Kg3 {[%emt 0:00:31]} Kxg6 {[%emt 0:02:59]} 37. Nxe6 {[%emt 0:00:06]} Rxa2 {[%emt 0:00:06]} 38. Nf4+ {[%emt 0:03:06]} Kf7 {[%emt 0:00:30]} 39. Bg5 {[%emt 0:02:29]} Ke8 {[%emt 0:06:11]} 40. e6 {[%emt 0:01:13]} Ra6 {[%emt 0:01:01]} 41. Nh5 {[%emt 0:15:51]} Kf8 {[%emt 0:16:29]} 42. e7+ {[%emt 0:00:14]} Kf7 {[%emt 0:00:05]} 43. Ng7 {[%emt 0:00:09]} f4+ {[%emt 0:00:13]} 44. Kf3 {[%emt 0:00:14]} 1-0

[Event "2nd Sparkasse Trophy Harrwitz Memorial"]
[Site "Bolzano"]
[Date "2025.04.27"]
[Round "5.2"]
[White "Hofegger, Jakob"]
[Black "Bonagura, Stefano"]
[Result "1/2-1/2"]
[Annotator "ChessBase"]
[ECO "A07"]
[WhiteElo "2142"]
[BlackElo "2199"]
[PlyCount "57"]
[EventDate "2025.04.19"]
[EventType "swiss"]
[EventCountry "ITA"]
[SourceTitle "playchess.com"]
[Source "ChessBase"]
[SourceQuality "1"]
[TimeControl "40/5400+30:900+30"]

1. Nf3 {[%emt 0:00:04]} d5 {[%emt 0:00:51]} 2. g3 {[%emt 0:00:04]} c6 {[%emt 0:00:32]} 3. Bg2 {[%emt 0:00:05]} Bg4 {[%emt 0:00:31]} 4. O-O {[%emt 0:00:46]} Nd7 {[%emt 0:00:23]} 5. d3 {[%emt 0:01:03]} e6 {[%emt 0:01:44]} 6. Nbd2 {[%emt 0:01:30]} Bd6 {[%emt 0:00:31]} 7. h3 {[%emt 0:00:58]} Bh5 {[%emt 0:00:28]} 8. e4 {[%emt 0:00:08]} Ne7 {[%emt 0:01:42]} 9. Qe1 {[%emt 0:01:21]} O-O {[%emt 0:06:12]} 10. b3 {[%emt 0:02:09]} a5 {[%emt 0:01:20]} 11. a3 {[%emt 0:01:08]} b5 {[%emt 0:22:08]} 12. Bb2 {[%emt 0:03:06]} Rc8 {[%emt 0:25:23]} 13. Kh1 {[%emt 0:13:47]} a4 {[%emt 0:01:11]} 14. bxa4 {[%emt 0:17:27]} bxa4 {[%emt 0:00:10]} 15. Nh4 {[%emt 0:00:12]} e5 {[%emt 0:05:52]} 16. f4 {[%emt 0:11:36]} f6 {[%emt 0:02:36]} 17. g4 {[%emt 0:02:14]} Bf7 {[%emt 0:01:29]} 18. g5 {[%emt 0:12:27]} fxg5 {[%emt 0:03:31]} 19. fxe5 {[%emt 0:01:58]} Bxe5 {[%emt 0:01:33]} 20. Bxe5 {[%emt 0:02:23]} Nxe5 {[%emt 0:00:23]} 21. Qg3 {[%emt 0:01:34]} gxh4 {[%emt 0:03:40]} 22. Qxe5 {[%emt 0:00:16]} Ng6 {[%emt 0:00:23]} 23. Qd4 {[%emt 0:03:48]} Qg5 {[%emt 0:00:31]} 24. Rf2 {[%emt 0:06:35]} Be6 {[%emt 0:01:55]} 25. Raf1 {[%emt 0:02:26]} Qg3 {[%emt 0:02:14]} 26. Rxf8+ {[%emt 0:00:37]} Rxf8 {[%emt 0:00:07]} 27. Rxf8+ {[%emt 0:00:04]} Nxf8 {[%emt 0:01:34]} 28. Nf1 {[%emt 0:01:22]} Qd6 {[%emt 0:09:18]} 29. Qxa4 {[%emt 0:01:11]} 1/2-1/2